fUSD/lending_fUSD_20250326
["ID","MTS","AMOUNT","RATE_DAILY","PERIOD"]
[356701150,1742989861123,-500.0,0.00041095,30]
[356701151,1742989861132,-502.53708316,0.00041095,30]
[356701152,1742989861141,-1957.89,0.00041095,30]
[356701153,1742989861150,-500.0,0.00041095,30]
[356701154,1742989861159,-500.0,0.00041095,30]
[356701155,1742989861170,-522.05325521,0.00041095,30]
[356701156,1742989861179,-616.61607661,0.00041095,30]
[356701157,1742989861188,-1297.96,0.00041095,30]
[356701158,1742989861199,-526.31260676,0.00041095,30]
[356701159,1742989861208,-500.0,0.00041095,30]
[356701160,1742989861217,-503.15287138,0.00041095,30]
[356701161,1742989861226,-552.79927409,0.00041095,30]
[356701162,1742989861235,-500.0,0.00041095,30]
[356701163,1742989861244,-500.0,0.00041095,30]
[356701164,1742989861253,-500.0,0.00041095,30]
[356701165,1742989861262,-500.0,0.00041095,30]
[356701166,1742989861271,-500.0,0.00041095,30]
[356701167,1742989861280,-500.0,0.00041095,30]
[356701168,1742989861289,-500.0,0.00041095,30]
[356701169,1742989861299,-500.0,0.00041095,7]
[356701170,1742989861307,-500.42318483,0.00041095,30]
[356701171,1742989861317,-500.0,0.00041095,30]
[356701172,1742989861326,-500.0,0.00041095,30]
[356701173,1742989861335,-500.0,0.00041095,30]
[356701174,1742989861344,-500.0,0.00041095,30]
[356701175,1742989861353,-544.52225343,0.00041095,30]
[356701176,1742989861364,-512.96323913,0.00041095,30]
[356701177,1742989861373,-500.0,0.00041095,30]
[356701178,1742989861383,-500.0,0.00041095,30]
[356701179,1742989861393,-500.0,0.00041095,30]
[356701180,1742989861402,-500.0,0.00041095,30]
[356701181,1742989861412,-500.0,0.00041095,30]
[356701182,1742989861424,-425.66925003,0.00041095,30]
[356701183,1742989861433,-500.0,0.00041095,30]
[356701184,1742989861442,-500.0,0.00041095,30]
[356701185,1742989861451,-504.5742394,0.00041095,30]
[356701186,1742989861461,-529.54197259,0.00041095,30]
[356701187,1742989861471,-500.0,0.00041095,30]
[356701188,1742989861480,-500.0,0.00041095,30]
[356701189,1742989861489,-500.0,0.00041095,30]
[356701190,1742989861499,-500.0,0.00041095,30]
[356701191,1742989861508,-500.0,0.00041095,30]
[356701192,1742989861518,-505.23034849,0.00041095,30]
[356701193,1742989861528,-598.11140736,0.00041095,30]
[356701194,1742989861538,-500.0,0.00041095,30]
[356701195,1742989861547,-500.0,0.00041095,30]
[356701196,1742989861557,-227.51575705,0.00041095,30]
[356701197,1742989861567,-500.0,0.00041095,30]
[356701198,1742989861577,-500.0,0.00041095,30]
[356701199,1742989861586,-500.0,0.00041095,30]
[356701200,1742989861596,-500.0,0.00041095,30]
[356701201,1742989861606,-500.0,0.00041095,30]
[356701202,1742989861615,-500.0,0.00041095,30]
[356701203,1742989861624,-500.0,0.00041095,30]
[356701204,1742989861633,-500.0,0.00041095,30]
[356701205,1742989861643,-559.83537466,0.00041095,30]
[356701206,1742989861652,-500.0,0.00041095,30]
[356701207,1742989861662,-500.0,0.00041095,30]
[356701208,1742989861671,-546.32306349,0.00041095,30]
[356701209,1742989861680,-500.0,0.00041095,30]
[356701210,1742989861690,-500.0,0.00041095,30]
[356701211,1742989861699,-866.15,0.00041095,30]
[356701212,1742989861709,-500.0,0.00041095,30]
[356701213,1742989861719,-1500.0,0.00041095,30]
[356701214,1742989861729,-500.0,0.00041095,30]
[356701215,1742989861739,-500.0,0.00041095,30]
[356701216,1742989861748,-529.52663554,0.00041095,30]
[356701217,1742989861758,-500.0,0.00041095,30]
[356701218,1742989861767,-500.0,0.00041095,30]
[356701219,1742989861776,-500.0,0.00041095,30]
[356701220,1742989861785,-500.0,0.00041095,30]
[356701221,1742989861795,-500.0,0.00041095,30]
[356701222,1742989861807,-500.0,0.00041095,30]
[356701223,1742989861815,-532.30842332,0.00041095,30]
[356701224,1742989861824,-500.0,0.00041095,30]
[356701225,1742989861833,-500.0,0.00041095,30]
[356701226,1742989861842,-500.0,0.00041095,30]
[356701227,1742989861851,-500.0,0.00041095,30]
[356701228,1742989861861,-500.0,0.00041095,30]
[356701229,1742989861869,-1816.31,0.00041095,30]
[356701230,1742989861879,-500.0,0.00041095,30]
[356701231,1742989861893,-1007.03,0.00041095,30]
[356701232,1742989861903,-500.0,0.00041095,30]
[356701233,1742989861912,-1007.03,0.00041095,30]
[356701234,1742989861922,-1007.03,0.00041095,30]
[356701235,1742989861932,-1007.03,0.00041095,30]
[356701236,1742989861941,-500.0,0.00041095,30]
[356701237,1742989861951,-1007.03,0.00041095,30]
[356701238,1742989861961,-1007.03,0.00041095,30]
[356701239,1742989861971,-1007.03,0.00041095,30]
[356701240,1742989861979,-209.36659859,0.00041095,30]
[356701241,1742989861989,-1007.03,0.00041095,30]
[356701242,1742989861998,-1007.03,0.00041095,30]
[356701243,1742989862007,-500.0,0.00041095,30]
[356701244,1742989862016,-1007.03,0.00041095,30]
[356701245,1742989862026,-500.0,0.00041095,30]
[356701246,1742989862035,-1007.03,0.00041095,30]
[356701247,1742989862044,-500.0,0.00041095,30]
[356701248,1742989862053,-1007.03,0.00041095,30]
[356701249,1742989862062,-443.26792051,0.00041095,30]
[356701250,1742989862071,-1007.03,0.00041095,30]
[356701251,1742989862080,-1007.03,0.00041095,30]
[356701252,1742989862091,-500.0,0.00041095,30]
[356701253,1742989862100,-500.0,0.00041095,30]
[356701254,1742989862110,-1007.03,0.00041095,30]
[356701255,1742989862119,-1007.03,0.00041095,30]
[356701256,1742989862129,-500.0,0.00041095,30]
[356701257,1742989862140,-500.0,0.00041095,30]
[356701258,1742989862150,-500.0,0.00041095,30]
[356701259,1742989862161,-500.0,0.00041095,30]
[356701260,1742989862171,-500.0,0.00041095,30]
[356701261,1742989862181,-500.0,0.00041095,30]
[356701262,1742989862191,-500.0,0.00041095,30]
[356701263,1742989862202,-500.0,0.00041095,30]
[356701264,1742989862212,-519.48086414,0.00041095,30]
[356701265,1742989862221,-189.1505116,0.00041095,30]
[356701266,1742989862231,-778.66,0.00041095,30]
[356701267,1742989862240,-500.0,0.00041095,30]
[356701268,1742989862251,-500.0,0.00041095,30]
[356701269,1742989862260,-563.94,0.00041095,30]
[356701270,1742989862270,-500.0,0.00041095,30]
[356701271,1742989862279,-500.0,0.00041095,30]
[356701272,1742989862289,-500.0,0.00041095,30]
[356701273,1742989862299,-500.0,0.00041095,30]
[356701274,1742989862308,-500.0,0.00041095,30]
[356701275,1742989862317,-503.68901002,0.00041095,30]
[356701276,1742989862327,-500.0,0.00041095,30]
[356701277,1742989862337,-531.36300549,0.00041095,30]
[356701278,1742989862347,-500.0,0.00041095,30]
[356701279,1742989862356,-500.0,0.00041095,30]
[356701280,1742989862365,-500.0,0.00041095,30]
[356701281,1742989862375,-529.18211545,0.00041095,30]
[356701282,1742989862384,-508.28528424,0.00041095,30]
[356701283,1742989862393,-500.0,0.00041095,30]
[356701284,1742989862403,-500.0,0.00041095,30]
[356701285,1742989862412,-500.0,0.00041095,30]
[356701286,1742989862508,-500.0,0.00041095,30]
[356701287,1742989862518,-503.73449756,0.00041095,30]
[356701288,1742989862527,-500.0,0.00041095,30]
[356701289,1742989862537,-500.0,0.00041095,30]
[356701290,1742989862546,-611.5322129,0.00041095,30]
[356701291,1742989862556,-500.0,0.00041095,30]
[356701292,1742989862565,-500.0,0.00041095,30]
[356701293,1742989862575,-500.0,0.00041095,30]
[356701294,1742989862584,-500.0,0.00041095,30]
[356701295,1742989862594,-500.0,0.00041095,30]
[356701296,1742989862603,-500.0,0.00041095,30]
[356701297,1742989862613,-500.0,0.00041095,30]
[356701298,1742989862622,-509.8617555,0.00041095,30]
[356701299,1742989862632,-500.0,0.00041095,30]
[356701300,1742989862641,-500.0,0.00041095,30]
[356701301,1742989862650,-3131.81,0.00041095,30]
[356701302,1742989862660,-500.0,0.00041095,30]
[356701303,1742989862669,-500.0,0.00041095,30]
[356701304,1742989862679,-500.0,0.00041095,30]
[356701305,1742989862688,-500.0,0.00041095,30]
[356701306,1742989862699,-500.0,0.00041095,30]
[356701307,1742989862708,-500.0,0.00041095,30]
[356701308,1742989862719,-500.0,0.00041095,30]
[356701309,1742989862728,-500.0,0.00041095,30]
[356701310,1742989862737,-500.0,0.00041095,30]
[356701311,1742989862747,-500.0,0.00041095,30]
[356701312,1742989862757,-500.0,0.00041095,30]
[356701313,1742989862767,-500.0,0.00041095,30]
[356701314,1742989862776,-500.0,0.00041095,30]
[356701315,1742989862785,-500.0,0.00041095,30]
[356701316,1742989862795,-500.0,0.00041095,30]
[356701317,1742989862804,-500.0,0.00041095,30]
[356701318,1742989862813,-316.91949872,0.00041095,30]
[356701319,1742989862823,-500.0,0.00041095,30]
[356701320,1742989862832,-500.0,0.00041095,30]
[356701321,1742989862841,-500.0,0.00041095,30]
[356701322,1742989862850,-500.0,0.00041095,30]
[356701323,1742989862860,-500.0,0.00041095,30]
[356701324,1742989862869,-621.86577457,0.00041095,30]
[356701325,1742989862878,-500.0,0.00041095,30]
[356701326,1742989862888,-500.0,0.00041095,30]
[356701327,1742989862897,-500.0,0.00041095,30]
[356701328,1742989862907,-500.0,0.00041095,30]
[356701329,1742989862916,-178.07832782,0.00041095,2]
[356701330,1742989862925,-500.0,0.00041095,30]
[356701331,1742989862934,-500.0,0.00041095,30]
[356701332,1742989862943,-500.0,0.00041095,30]
[356701333,1742989862953,-504.04046198,0.00041095,30]
[356701334,1742989862962,-500.0,0.00041095,30]
[356701335,1742989862971,-500.0,0.00041095,30]
[356701336,1742989862980,-500.0,0.00041095,30]
[356701337,1742989862989,-500.0,0.00041095,30]
[356701338,1742989862998,-519.59240523,0.00041095,30]
[356701339,1742989863007,-500.0,0.00041095,30]
[356701340,1742989863016,-500.0,0.00041095,30]
[356701341,1742989863026,-500.0,0.00041095,30]
[356701342,1742989863035,-193.94400938,0.00041095,30]
[356701343,1742989863045,-500.0,0.00041095,30]
[356701344,1742989863055,-570.77802563,0.00041095,30]
[356701345,1742989863065,-500.0,0.00041095,30]
[356701346,1742989863075,-500.0,0.00041095,30]
[356701347,1742989863085,-500.0,0.00041095,30]
[356701348,1742989863097,-500.0,0.00041095,30]
[356701349,1742989863107,-500.0,0.00041095,30]
[356701350,1742989863117,-651.46,0.00041095,7]
[356701351,1742989863127,-500.0,0.00041095,30]
[356701352,1742989863136,-500.0,0.00041095,30]
[356701353,1742989863145,-500.0,0.00041095,2]
[356701354,1742989863155,-500.0,0.00041095,30]
[356701355,1742989863166,-500.0,0.00041095,30]
[356701356,1742989863175,-534.58811321,0.00041095,30]
[356701357,1742989863185,-500.0,0.00041095,30]
[356701358,1742989863194,-500.0,0.00041095,30]
[356701359,1742989863205,-219.60706052,0.00041095,2]
[356701360,1742989863214,-557.5550834,0.00041095,30]
[356701361,1742989863223,-500.0,0.00041095,2]
[356701362,1742989863233,-500.0,0.00041095,30]
[356701363,1742989863242,-500.0,0.00041095,30]
[356701364,1742989863251,-504.47525764,0.00041095,30]
[356701365,1742989863261,-649.8869138,0.00041095,30]
[356701366,1742989863270,-500.0,0.00041095,30]
[356701367,1742989863279,-500.0,0.00041095,30]
[356701368,1742989863289,-500.0,0.00041095,30]
[356701369,1742989863298,-500.0,0.00041095,30]
[356701370,1742989863307,-500.0,0.00041095,30]
[356701371,1742989863317,-547.29217669,0.00041095,30]
[356701372,1742989863326,-500.0,0.00041095,30]
[356701373,1742989863336,-500.0,0.00041095,30]
[356701374,1742989863345,-500.0,0.00041095,30]
[356701375,1742989863354,-565.83,0.00041095,2]
[356701376,1742989863364,-500.0,0.00041095,30]
[356701377,1742989863373,-565.83,0.00041095,2]
[356701378,1742989863382,-565.83,0.00041095,2]
[356701379,1742989863391,-565.83,0.00041095,2]
[356701380,1742989863401,-565.83,0.00041095,2]
[356701381,1742989863410,-565.83,0.00041095,2]
[356701382,1742989863419,-565.83,0.00041095,2]
[356701383,1742989863429,-565.83,0.00041095,2]
[356701384,1742989863440,-565.83,0.00041095,2]
[356701385,1742989863450,-500.0,0.00041095,30]
[356701386,1742989863459,-500.0,0.00041095,30]
[356701387,1742989863468,-565.83,0.00041095,2]
[356701388,1742989863478,-500.0,0.00041095,30]
[356701389,1742989863487,-565.83,0.00041095,2]
[356701390,1742989863496,-500.0,0.00041096,120]
[356701391,1742989863507,-500.0,0.00041096,31]
[356701392,1742989863516,-500.0,0.00041096,31]
[356701393,1742989863525,-500.0,0.00041096,31]
[356701394,1742989863535,-500.0,0.00041096,31]
[356701395,1742989863544,-500.0,0.00041096,31]
[356701396,1742989863554,-500.0,0.00041096,31]
[356701397,1742989863563,-500.0,0.00041096,31]
[356701398,1742989863572,-500.0,0.00041096,31]
[356701399,1742989863582,-500.0,0.00041096,31]
[356701400,1742989863592,-600.0,0.00041096,31]
[356701401,1742989863602,-500.0,0.00041096,31]
[356701402,1742989863612,-500.0,0.00041096,31]
[356701403,1742989863623,-500.0,0.00041096,31]
[356701404,1742989863632,-500.0,0.00041096,31]
[356701405,1742989863642,-500.0,0.00041096,31]
[356701406,1742989863652,-500.0,0.00041096,31]
[356701407,1742989863661,-500.0,0.00041096,31]
[356701408,1742989863670,-500.0,0.00041096,31]
[356701409,1742989863680,-500.0,0.00041096,31]
[356701410,1742989863689,-500.0,0.00041096,31]
[356701411,1742989863700,-500.0,0.00041096,31]
[356701412,1742989863709,-500.0,0.00041096,31]
[356701413,1742989863719,-500.0,0.00041096,31]
[356701414,1742989863729,-500.0,0.00041096,31]
[356701415,1742989863739,-500.0,0.00041096,31]
[356701416,1742989863750,-500.0,0.00041096,31]
[356701417,1742989863759,-500.0,0.00041096,31]
[356701418,1742989863769,-500.0,0.00041096,31]
[356701419,1742989863780,-500.0,0.00041096,31]
[356701420,1742989863790,-500.0,0.00041096,31]
[356701421,1742989863799,-500.0,0.00041096,31]
[356701422,1742989863810,-500.0,0.00041096,31]
[356701423,1742989863820,-500.0,0.00041096,31]
[356701424,1742989863830,-500.0,0.00041096,31]
[356701425,1742989863840,-199.60119199,0.00041096,31]
[356701426,1742989863849,-500.0,0.00041096,31]
[356701427,1742989863859,-500.0,0.00041096,31]
[356701428,1742989863868,-500.0,0.00041096,31]
[356701429,1742989863878,-500.0,0.00041096,31]
[356701430,1742989863887,-500.0,0.00041096,31]
[356701431,1742989863896,-500.0,0.00041096,31]
[356701432,1742989863906,-500.0,0.00041096,31]
[356701433,1742989864000,-500.0,0.00041096,31]
[356701434,1742989864010,-500.0,0.00041096,31]
[356701435,1742989864020,-500.0,0.00041096,31]
[356701436,1742989864030,-500.0,0.00041096,31]
[356701437,1742989864039,-500.0,0.00041096,31]
[356701438,1742989864049,-500.0,0.00041096,31]
[356701439,1742989864059,-500.0,0.00041096,31]
[356701440,1742989864069,-500.0,0.00041096,31]
[356701441,1742989864078,-150.0,0.00041103,10]
[356701442,1742989864092,-150.0,0.00041185,10]
[356701443,1742989864102,-150.0,0.00041267,10]
[356701444,1742989864111,-786.66,0.00041368,30]
[356701445,1742989864121,-786.66,0.00041368,30]
[356701446,1742989864132,-1007.03,0.00041368,30]
[356701447,1742989864142,-1007.03,0.00041368,30]
[356701448,1742989864151,-488.388934,0.00041369,30]
[356701449,1742989864161,-348.343309,0.00041369,30]
[356701450,1742989864172,-500.0,0.00041369,2]
[356701451,1742989864182,-503.2944475,0.00041369,30]
[356701452,1742989864191,-306.02660027,0.00041369,30]
[356701453,1742989864201,-500.0,0.00041369,30]
[356701454,1742989864211,-504.48706099,0.00041369,30]
[356701455,1742989864221,-605.62720199,0.00041369,30]
[356701456,1742989864230,-544.05837008,0.00041369,30]
[356701457,1742989864240,-504.25176604,0.00041369,30]
[356701458,1742989864250,-515.60923691,0.00041369,30]
[356701459,1742989864260,-500.0,0.00041369,30]
[356701460,1742989864269,-541.0392988,0.00041369,30]
[356701461,1742989864278,-518.18874098,0.00041369,30]
[356701462,1742989864288,-530.09020439,0.00041369,30]
[356701463,1742989864299,-500.0,0.00041369,30]
[356701464,1742989864309,-531.72937485,0.00041369,30]
[356701465,1742989864319,-517.39961954,0.00041369,30]
[356701466,1742989864328,-519.52843656,0.00041369,30]
[356701467,1742989864341,-2773.69,0.00041369,30]
[356701468,1742989864350,-500.0,0.00041369,30]
[356701469,1742989864360,-513.93036607,0.00041369,30]
[356701470,1742989864370,-500.0,0.00041369,30]
[356701471,1742989864379,-514.2601278,0.00041369,30]
[356701472,1742989864389,-514.46697219,0.00041369,30]
[356701473,1742989864399,-506.73990913,0.00041369,30]
[356701474,1742989864408,-504.15684555,0.00041369,30]
[356701475,1742989864417,-509.42463413,0.00041369,30]
[356701476,1742989864427,-500.0,0.00041369,30]
[356701477,1742989864436,-524.60758788,0.00041369,30]
[356701478,1742989864446,-523.02094407,0.00041369,30]
[356701479,1742989864457,-528.41273114,0.00041369,30]
[356701480,1742989864466,-522.51728871,0.00041369,30]
[356701481,1742989864475,-519.95641195,0.00041369,30]
[356701482,1742989864484,-504.11145317,0.00041369,30]
[356701483,1742989864493,-512.21073408,0.00041369,30]
[356701484,1742989864503,-554.82536122,0.00041369,30]
[356701485,1742989864512,-532.63797683,0.00041369,30]
[356701486,1742989864521,-557.33099876,0.00041369,30]
[356701487,1742989864531,-500.0,0.00041369,30]
[356701488,1742989864540,-526.84543922,0.00041369,30]
[356701489,1742989864549,-621.75531122,0.00041369,30]
[356701490,1742989864559,-500.0,0.00041369,30]
[356701491,1742989864568,-527.4579671,0.00041369,30]
[356701492,1742989864578,-527.01551387,0.00041369,30]
[356701493,1742989864587,-581.9263205,0.00041369,30]
[356701494,1742989864596,-517.4193907,0.00041369,30]
[356701495,1742989864605,-541.36379706,0.00041369,30]
[356701496,1742989864615,-542.8575075,0.00041369,30]
[356701497,1742989864624,-515.10841959,0.00041369,30]
[356701498,1742989864633,-504.86597467,0.00041369,30]
[356701499,1742989864643,-568.80998723,0.00041369,30]
[356701500,1742989864652,-521.46017653,0.00041369,30]
[356701501,1742989864662,-500.0,0.00041369,30]
[356701502,1742989864671,-542.88860057,0.00041369,30]
[356701503,1742989864681,-522.62576221,0.00041369,30]
[356701504,1742989864690,-523.39857586,0.00041369,30]
[356701505,1742989864700,-527.60618285,0.00041369,30]
[356701506,1742989864710,-553.26899097,0.00041369,30]
[356701507,1742989864720,-500.89891491,0.00041369,30]
[356701508,1742989864730,-500.0,0.00041369,30]
[356701509,1742989864740,-511.1595699,0.00041369,30]
[356701510,1742989864750,-517.59352784,0.00041369,30]
[356701511,1742989864759,-515.71695496,0.00041369,30]
[356701512,1742989864768,-531.34443209,0.00041369,30]
[356701513,1742989864778,-503.81161339,0.00041369,30]
[356701514,1742989864787,-572.6314574,0.00041369,30]
[356701515,1742989864797,-532.16182541,0.00041369,30]
[356701516,1742989864806,-513.88756452,0.00041369,30]
[356701517,1742989864815,-560.88936381,0.00041369,30]
[356701518,1742989864825,-510.12676054,0.00041369,30]
[356701519,1742989864835,-520.61522383,0.00041369,30]
[356701520,1742989864846,-500.0,0.00041369,2]
[356701521,1742989864855,-613.22775328,0.00041369,30]
[356701522,1742989864865,-600.87136159,0.00041369,30]
[356701523,1742989864874,-552.00076351,0.00041369,30]
[356701524,1742989864883,-591.47566066,0.00041369,30]
[356701525,1742989864892,-537.25642477,0.00041369,30]
[356701526,1742989864903,-566.7438412,0.00041369,30]
[356701527,1742989864913,-504.62983928,0.00041369,30]
[356701528,1742989864923,-534.37591988,0.00041369,30]
[356701529,1742989864933,-432.15791738,0.00041369,30]
[356701530,1742989864943,-513.29471338,0.00041369,30]
[356701531,1742989864952,-524.74424954,0.00041369,30]
[356701532,1742989864961,-524.80333655,0.00041369,30]
[356701533,1742989864971,-544.58832855,0.00041369,30]
[356701534,1742989864980,-500.0,0.00041369,30]
[356701535,1742989864990,-563.4192655,0.00041369,30]
[356701536,1742989864998,-500.0,0.00041369,30]
[356701537,1742989865008,-519.68532918,0.00041369,30]
[356701538,1742989865017,-561.61399657,0.00041369,30]
[356701539,1742989865027,-529.64915218,0.00041369,30]
[356701540,1742989865036,-500.0,0.00041369,30]
[356701541,1742989865046,-508.9444082,0.00041369,30]
[356701542,1742989865055,-523.62194903,0.00041369,30]
[356701543,1742989865064,-505.96139701,0.00041369,30]
[356701544,1742989865073,-500.0,0.00041369,30]
[356701545,1742989865083,-552.92,0.00041369,30]
[356701546,1742989865095,-500.0,0.00041369,30]
[356701547,1742989865104,-524.53222655,0.00041369,30]
[356701548,1742989865113,-669.0,0.00041369,30]
[356701549,1742989865122,-500.0,0.00041369,30]
[356701550,1742989865132,-500.0,0.00041369,30]
[356701551,1742989865142,-779.48,0.00041369,30]
[356701552,1742989865152,-500.0,0.00041369,30]
[356701553,1742989865161,-500.0,0.00041369,30]
[356701554,1742989865171,-2314.65,0.00041369,30]
[356701555,1742989865180,-500.0,0.00041369,30]
[356701556,1742989865189,-500.0,0.00041369,30]
[356701557,1742989865199,-548.6691597,0.00041369,30]
[356701558,1742989865209,-1144.12,0.00041369,30]
[356701559,1742989865218,-571.8801088,0.00041369,30]
[356701560,1742989865228,-500.0,0.00041369,30]
[356701561,1742989865237,-500.0,0.00041369,30]
[356701562,1742989865246,-500.0,0.00041369,30]
[356701563,1742989865256,-500.0,0.00041369,30]
[356701564,1742989865265,-2000.0,0.00041369,2]
[356701565,1742989865275,-500.0,0.00041369,30]
[356701566,1742989865285,-500.0,0.00041369,30]
[356701567,1742989865368,-532.3585093,0.00041369,30]
[356701568,1742989865378,-2936.97,0.00041369,30]
[356701569,1742989865388,-500.0,0.00041369,30]
[356701570,1742989865397,-532.79315405,0.00041369,30]
[356701571,1742989865407,-500.0,0.00041369,30]
[356701572,1742989865416,-500.0,0.00041369,30]
[356701573,1742989865426,-500.0,0.00041369,120]
[356701574,1742989865436,-505.52900637,0.00041369,2]
[356701575,1742989865445,-508.87335873,0.00041369,30]
[356701576,1742989865454,-500.0,0.00041369,30]
[356701577,1742989865464,-500.0,0.00041369,30]
[356701578,1742989865474,-500.0,0.00041369,30]
[356701579,1742989865483,-500.0,0.00041369,30]
[356701580,1742989865493,-500.0,0.00041369,30]
[356701581,1742989865503,-500.0,0.00041369,2]
[356701582,1742989865511,-564.17259079,0.00041369,30]
[356701583,1742989865521,-551.09846942,0.00041369,30]
[356701584,1742989865530,-500.0,0.00041369,30]
[356701585,1742989865539,-500.0,0.00041369,30]
[356701586,1742989865549,-500.0,0.00041369,20]
[356701587,1742989865559,-505.55659879,0.00041369,30]
[356701588,1742989865568,-587.95555762,0.00041369,30]
[356701589,1742989865577,-500.0,0.00041369,30]
[356701590,1742989865587,-500.0,0.00041369,30]
[356701591,1742989865596,-500.0,0.00041369,30]
[356701592,1742989865606,-500.0,0.00041369,30]
[356701593,1742989865615,-500.0,0.00041369,30]
[356701594,1742989865624,-500.0,0.00041369,30]
[356701595,1742989865634,-500.0,0.00041369,30]
[356701596,1742989865643,-500.0,0.00041369,30]
[356701597,1742989865652,-500.0,0.00041369,30]
[356701598,1742989865662,-500.0,0.00041369,30]
[356701599,1742989865671,-500.0,0.00041369,30]
[356701600,1742989865680,-500.0,0.00041369,30]
[356701601,1742989865690,-500.0,0.00041369,30]
[356701602,1742989865699,-500.0,0.00041369,30]
[356701603,1742989865708,-500.0,0.00041369,30]
[356701604,1742989865718,-500.0,0.00041369,30]
[356701605,1742989865727,-500.0,0.00041369,30]
[356701606,1742989865737,-553.31907497,0.00041369,30]
[356701607,1742989865746,-500.0,0.00041369,30]
[356701608,1742989865756,-512.67933452,0.00041369,30]
[356701609,1742989865765,-536.10756566,0.00041369,30]
[356701610,1742989865774,-515.9085802,0.00041369,30]
[356701611,1742989865784,-538.61,0.00041369,10]
[356701612,1742989865793,-503.31150242,0.00041369,30]
[356701613,1742989865802,-500.0,0.00041369,30]
[356701614,1742989865812,-503.79458235,0.00041369,30]
[356701615,1742989865821,-502.74577972,0.00041369,30]
[356701616,1742989865830,-500.0,0.00041369,30]
[356701617,1742989865839,-506.68970794,0.00041369,30]
[356701618,1742989865848,-500.0,0.00041369,30]
[356701619,1742989865857,-384.63103124,0.00041369,30]
[356701620,1742989865866,-513.74431031,0.00041369,30]
[356701621,1742989865875,-219.40979998,0.00041369,30]
[356701622,1742989865884,-818.4,0.00041369,30]
[356701623,1742989865893,-313.39057249,0.00041369,30]
[356701624,1742989865903,-500.0,0.00041369,30]
[356701625,1742989865912,-500.0,0.00041369,30]
[356701626,1742989865921,-500.0,0.00041369,30]
[356701627,1742989865931,-173.65991077,0.00041369,30]
[356701628,1742989865940,-546.41809604,0.00041369,30]
[356701629,1742989865950,-516.46263013,0.00041369,30]
[356701630,1742989865959,-500.0,0.00041369,30]
[356701631,1742989865969,-514.58635573,0.00041369,30]
[356701632,1742989865977,-500.0,0.00041369,30]
[356701633,1742989865987,-500.0,0.00041369,30]
[356701634,1742989865997,-500.0,0.00041369,30]
[356701635,1742989866007,-500.0,0.00041369,30]
[356701636,1742989866016,-569.4947662,0.00041369,30]
[356701637,1742989866026,-531.13064072,0.00041369,30]
[356701638,1742989866035,-534.8368714,0.00041369,30]
[356701639,1742989866044,-570.50410883,0.00041369,30]
[356701640,1742989866054,-500.0,0.00041369,30]
[356701641,1742989866063,-523.52243793,0.00041369,30]
[356701642,1742989866073,-519.45374732,0.00041369,30]
[356701643,1742989866082,-375.48492573,0.00041369,30]
[356701644,1742989866095,-627.57037123,0.00041369,30]
[356701645,1742989866104,-1205.22,0.00041369,30]
[356701646,1742989866117,-517.65052268,0.00041369,30]
[356701647,1742989866127,-500.0,0.00041369,30]
[356701648,1742989866138,-500.0,0.00041369,30]
[356701649,1742989866148,-500.0,0.00041369,30]